fUST/lending_fUST_20250720
["ID","MTS","AMOUNT","RATE_DAILY","PERIOD"]
[373475495,1753019456402,-460.0,0.00017808,2]
[373475497,1753019456411,-460.0,0.00017808,2]
[373475499,1753019456422,-460.0,0.00017808,2]
[373475501,1753019456431,-460.0,0.00017808,2]
[373475503,1753019456445,-460.0,0.00017808,2]
[373475505,1753019456455,-460.0,0.00017808,2]
[373475507,1753019456464,-460.0,0.00017808,2]
[373475509,1753019456474,-1119.34,0.00017808,2]
[373475511,1753019456484,-460.0,0.00017808,2]
[373475513,1753019456494,-460.0,0.00017808,2]
[373475515,1753019456503,-460.0,0.00017808,2]
[373475517,1753019456513,-460.0,0.00017808,2]
[373475519,1753019456524,-460.0,0.00017808,2]
[373475521,1753019456533,-460.0,0.00017808,2]
[373475523,1753019456542,-462.01997114,0.00017808,2]
[373475525,1753019456552,-1334.21,0.00017808,2]
[373475527,1753019456561,-460.0,0.00017808,2]
[373475529,1753019456570,-2930.51,0.00017808,2]
[373475531,1753019456580,-460.0,0.00017808,2]
[373475533,1753019456589,-460.0,0.00017808,2]
[373475535,1753019456599,-460.0,0.00017808,2]
[373475537,1753019456608,-460.0,0.00017808,2]
[373475539,1753019456618,-460.0,0.00017808,2]
[373475541,1753019456628,-763.65,0.00017808,2]
[373475544,1753019456639,-460.0,0.00017808,2]
[373475546,1753019456648,-460.0,0.00017808,2]
[373475547,1753019456658,-2327.68,0.00017808,2]
[373475549,1753019456668,-2733.92,0.00017808,2]
[373475551,1753019456678,-460.0,0.00017808,2]
[373475553,1753019456687,-1000.0,0.00017868,2]
[373475554,1753019456697,-537.69162224,0.00017868,2]
[373475556,1753019456707,-1000.0,0.00017868,2]
[373475558,1753019456716,-1500.0,0.00017868,2]
[373475560,1753019456726,-500.0,0.00017868,2]
[373475562,1753019456736,-1000.0,0.00017868,2]
[373475564,1753019456745,-216.50673032,0.00017874,2]
[373475566,1753019456754,-500.0,0.00017874,2]
[373475568,1753019456764,-500.0,0.00017874,2]
[373475570,1753019456773,-1253.18,0.00017884,2]
[373475572,1753019456783,-1923.76,0.00017884,2]
[373475574,1753019456792,-460.0,0.00017884,2]
[373475576,1753019456802,-558.83,0.00017884,2]
[373475578,1753019456815,-1175.19,0.00017884,2]
[373475580,1753019456825,-460.0,0.00017885,2]
[373475582,1753019456834,-151.0,0.00017885,2]
[373475584,1753019456843,-151.0,0.00017885,2]
[373475585,1753019456852,-220.405633,0.00017885,2]
[373475587,1753019456862,-220.405633,0.00017885,2]
[373475589,1753019456872,-1089.97,0.00017886,2]
[373475591,1753019456882,-420.0,0.00017937,2]
[373475593,1753019456892,-159.8396335,0.00017973,2]
[373475595,1753019456901,-153.0,0.00017973,2]
[373475597,1753019456911,-153.0,0.00017973,2]
[373475599,1753019456920,-577.2483964,0.00017973,2]
[373475601,1753019456930,-159.8396335,0.00017973,2]
[373475603,1753019456939,-166.1771152,0.00017973,2]
[373475605,1753019456948,-153.0,0.00017973,2]
[373475607,1753019456958,-153.0,0.00017973,2]
[373475608,1753019456967,-159.8396335,0.00017973,2]
[373475610,1753019456976,-159.8396335,0.00017973,2]
[373475612,1753019456986,-159.8396335,0.00017973,2]
[373475614,1753019456995,-159.8396335,0.00017973,2]
[373475616,1753019457004,-159.8396335,0.00017973,2]
[373475618,1753019457014,-159.8396335,0.00017973,2]
[373475620,1753019457023,-157.2306603,0.00017973,2]
[373475622,1753019457033,-159.8396335,0.00017973,2]
[373475624,1753019457042,-177.1379916,0.00017973,2]
[373475626,1753019457051,-159.8396335,0.00017973,2]
[373475628,1753019457061,-577.2483964,0.00017973,2]
[373475630,1753019457071,-153.0,0.00017973,2]
[373475632,1753019457079,-153.0,0.00017973,2]
[373475634,1753019457089,-153.0,0.00017973,2]
[373475636,1753019457098,-153.0,0.00017973,2]
[373475638,1753019457108,-153.0,0.00017973,2]
[373475640,1753019457117,-47644.38513434,0.00018,2]
[373475642,1753019457126,-5930.36489455,0.00018,2]
[373475644,1753019457136,-151.0,0.00018,2]
[373475645,1753019457146,-152.811952,0.00018,2]
[373475647,1753019457156,-152.811952,0.00018,2]
[373475650,1753019457166,-151.0,0.00018,2]
[373475651,1753019457175,-151.0,0.00018,2]
[373475653,1753019457185,-151.0,0.00018,2]
[373475655,1753019457194,-191.36,0.00018,2]
[373475657,1753019457203,-151.0,0.00018,2]
[373475659,1753019457213,-151.0,0.00018,2]
[373475661,1753019457222,-151.0,0.00018,2]
[373475663,1753019457231,-337.966889,0.00018,2]
[373475665,1753019457241,-337.966889,0.00018,2]
[373475667,1753019457251,-151.0,0.00018,2]
[373475669,1753019457261,-151.0,0.00018,2]
[373475671,1753019457270,-151.0,0.00018,2]
[373475673,1753019457280,-151.0,0.00018,2]
[373475675,1753019457291,-195.285232,0.00018,2]
[373475677,1753019457301,-195.285232,0.00018,2]
[373475679,1753019457310,-687.012168,0.00018,2]
[373475681,1753019457320,-687.012168,0.00018,2]
[373475683,1753019457330,-151.0,0.00018,2]
[373475685,1753019457340,-151.0,0.00018,2]
[373475687,1753019457349,-252.007973,0.00018,2]
[373475689,1753019457358,-252.007973,0.00018,2]
[373475691,1753019457368,-151.0,0.00018,2]
[373475693,1753019457377,-151.0,0.00018,2]
[373475695,1753019457386,-151.0,0.00018,2]
[373475697,1753019457398,-358.719151,0.00018,2]
[373475707,1753019457492,-4775.53488081,0.00018003,2]
[373475709,1753019457504,-460.0,0.00018082,2]
[373475712,1753019457517,-460.0,0.00018082,2]
[373475714,1753019457528,-337.21681902,0.00018082,2]
[373475716,1753019457538,-460.0,0.00018082,2]
[373475718,1753019457548,-460.0,0.00018082,2]
[373475720,1753019457557,-460.0,0.00018082,2]
[373475722,1753019457566,-460.0,0.00018082,2]
[373475724,1753019457576,-460.0,0.00018082,2]
[373475726,1753019457585,-460.0,0.00018082,2]
[373475728,1753019457595,-460.0,0.00018082,2]
[373475730,1753019457605,-460.0,0.00018082,2]
[373475731,1753019457614,-460.0,0.00018082,2]
[373475733,1753019457624,-460.0,0.00018082,2]
[373475735,1753019457633,-460.0,0.00018082,2]
[373475737,1753019457646,-199.49605341,0.00018082,2]
[373475739,1753019457655,-460.0,0.00018082,2]
[373475741,1753019457664,-402.20736563,0.00018082,2]
[373475743,1753019457674,-460.0,0.00018082,2]
[373475745,1753019457684,-460.0,0.00018082,2]
[373475747,1753019457694,-460.0,0.00018082,2]
[373475749,1753019457703,-460.0,0.00018082,2]
[373475751,1753019457713,-460.0,0.00018082,2]
[373475753,1753019457723,-460.0,0.00018082,2]
[373475755,1753019457732,-460.0,0.00018082,2]
[373475757,1753019457742,-151.0,0.00018082,2]
[373475759,1753019457752,-460.0,0.00018082,2]
[373475761,1753019457761,-460.0,0.00018082,2]
[373475763,1753019457770,-369.57089789,0.00018082,2]
[373475765,1753019457779,-460.0,0.00018082,2]
[373475767,1753019457789,-460.0,0.00018082,2]
[373475769,1753019457798,-460.0,0.00018082,2]
[373475771,1753019457809,-460.0,0.00018082,2]
[373475773,1753019457818,-460.0,0.00018082,2]
[373475775,1753019457827,-460.0,0.00018082,2]
[373475777,1753019457837,-1244.56,0.00018082,2]
[373475779,1753019457846,-460.0,0.00018082,2]
[373475781,1753019457855,-416.71038457,0.00018082,2]
[373475783,1753019457865,-460.0,0.00018082,2]
[373475785,1753019457875,-1544.89,0.00018082,2]
[373475787,1753019457884,-460.0,0.00018082,2]
[373475789,1753019457895,-842.6,0.00018082,2]
[373475791,1753019457904,-460.0,0.00018082,2]
[373475793,1753019457913,-460.0,0.00018082,2]
[373475795,1753019457922,-460.0,0.00018082,2]
[373475797,1753019457932,-460.0,0.00018082,2]
[373475799,1753019457941,-460.0,0.00018082,2]
[373475800,1753019457950,-460.0,0.00018082,2]
[373475802,1753019457959,-460.0,0.00018082,2]
[373475804,1753019457967,-593.12973816,0.00018082,2]
[373475806,1753019457977,-460.0,0.00018082,2]
[373475808,1753019457986,-460.0,0.00018082,2]
[373475810,1753019457996,-558.03,0.00018082,2]
[373475812,1753019458005,-400.00000075,0.00018082,2]
[373475814,1753019458015,-205.45351343,0.00018082,2]
[373475816,1753019458023,-460.0,0.00018082,2]
[373475818,1753019458033,-460.0,0.00018082,2]
[373475820,1753019458042,-1408.91,0.00018082,2]
[373475822,1753019458051,-460.0,0.00018082,2]
[373475824,1753019458060,-460.0,0.00018082,2]
[373475826,1753019458071,-460.0,0.00018082,2]
[373475828,1753019458080,-460.0,0.00018082,2]
[373475830,1753019458089,-460.0,0.00018082,2]
[373475832,1753019458101,-460.0,0.00018082,2]
[373475834,1753019458110,-460.0,0.00018082,2]
[373475836,1753019458120,-460.0,0.00018082,2]
[373475838,1753019458130,-460.0,0.00018082,2]
[373475840,1753019458139,-460.0,0.00018082,2]
[373475842,1753019458149,-460.0,0.00018082,2]
[373475844,1753019458158,-831.05,0.00018082,2]
[373475846,1753019458167,-460.0,0.00018082,2]
[373475848,1753019458176,-460.0,0.00018082,2]
[373475850,1753019458186,-460.0,0.00018082,2]
[373475852,1753019458195,-579.25,0.00018082,2]
[373475854,1753019458204,-460.0,0.00018082,2]
[373475856,1753019458214,-460.0,0.00018082,2]
[373475858,1753019458223,-2689.75,0.00018082,2]
[373475860,1753019458233,-460.0,0.00018082,2]
[373475862,1753019458242,-460.0,0.00018082,2]
[373475864,1753019458251,-326.01,0.00018082,2]
[373475866,1753019458260,-460.0,0.00018082,2]
[373475868,1753019458269,-228.08096883,0.00018082,2]
[373475870,1753019458278,-460.0,0.00018082,2]
[373475872,1753019458288,-460.0,0.00018082,2]
[373475874,1753019458298,-460.0,0.00018082,2]
[373475876,1753019458308,-1119.34,0.00018082,2]
[373475878,1753019458317,-460.0,0.00018082,2]
[373475880,1753019458326,-460.0,0.00018082,2]
[373475882,1753019458335,-460.0,0.00018082,2]
[373475884,1753019458344,-460.0,0.00018082,2]
[373475886,1753019458354,-460.0,0.00018082,2]
[373475888,1753019458364,-460.0,0.00018082,2]
[373475890,1753019458373,-1334.21,0.00018082,2]
[373475891,1753019458382,-208.329113,0.00018082,2]
[373475893,1753019458393,-460.0,0.00018082,2]
[373475896,1753019458402,-2930.51,0.00018082,2]
[373475897,1753019458412,-208.329113,0.00018082,2]
[373475899,1753019458421,-460.0,0.00018082,2]
[373475901,1753019458432,-460.0,0.00018082,2]
[373475904,1753019458447,-460.0,0.00018082,2]
[373475906,1753019458458,-460.0,0.00018082,2]
[373475907,1753019458468,-460.0,0.00018082,2]
[373475909,1753019458477,-763.65,0.00018082,2]
[373475911,1753019458487,-460.0,0.00018082,2]
[373475913,1753019458496,-460.0,0.00018082,2]
[373475915,1753019458505,-2327.68,0.00018082,2]
[373475917,1753019458516,-2733.92,0.00018082,2]
[373475919,1753019458526,-460.0,0.00018082,2]
[373475922,1753019458543,-160.0,0.00018133,2]
[373475923,1753019458554,-500.0,0.00018148,2]
[373475924,1753019458563,-500.0,0.00018148,2]
[373475925,1753019458572,-1253.18,0.00018158,2]
[373475926,1753019458581,-1923.76,0.00018158,2]
[373475927,1753019458590,-460.0,0.00018158,2]
[373475928,1753019458600,-558.83,0.00018158,2]
[373475929,1753019458609,-1175.19,0.00018158,2]
[373475930,1753019458618,-460.0,0.00018159,2]
[373475931,1753019458627,-1089.97,0.0001816,2]
[373475932,1753019458635,-260.0,0.00018167,2]
[373475933,1753019458645,-160.0,0.0001819,2]
[373475934,1753019458654,-160.0,0.0001819,2]
[373475935,1753019458663,-160.0,0.0001819,2]
[373475936,1753019458673,-215.71456056,0.00018196,2]
[373475937,1753019458682,-839.59621281,0.00018196,2]
[373475938,1753019458690,-214.5637056,0.00018196,2]
[373475939,1753019458699,-525.91036056,0.00018196,2]
[373475940,1753019458708,-160.0,0.00018196,2]
[373475941,1753019458717,-230.98123516,0.00018196,2]
[373475942,1753019458726,-160.0,0.00018196,2]
[373475943,1753019458735,-160.0,0.00018196,2]
[373475944,1753019458743,-12615.16111038,0.00018196,2]
[373475945,1753019458752,-476.42619115,0.00018196,2]
[373475946,1753019458762,-151.0,0.000182,2]
[373475947,1753019458771,-500.0,0.00018208,2]
[373475948,1753019458780,-289.97,0.00018252,2]
[373475949,1753019458789,-4775.53488081,0.00018279,2]
[373475950,1753019458798,-259.33486079,0.00018356,2]
[373475951,1753019458807,-460.0,0.00018356,2]
[373475952,1753019458816,-460.0,0.00018356,2]
[373475953,1753019458825,-460.0,0.00018356,2]
[373475954,1753019458834,-460.0,0.00018356,2]
[373475955,1753019458843,-460.0,0.00018356,2]
[373475956,1753019458852,-460.0,0.00018356,2]
[373475957,1753019458861,-460.0,0.00018356,2]
[373475959,1753019458870,-460.0,0.00018356,2]
[373475961,1753019458880,-460.0,0.00018356,2]
[373475963,1753019458890,-460.0,0.00018356,2]
[373475965,1753019458899,-460.0,0.00018356,2]
[373475967,1753019458909,-460.0,0.00018356,2]
[373475968,1753019458918,-460.0,0.00018356,2]
[373475971,1753019458931,-460.0,0.00018356,2]
[373475972,1753019458940,-460.0,0.00018356,2]
[373475974,1753019458949,-151.0,0.00018356,2]
[373475976,1753019458959,-460.0,0.00018356,2]
[373475978,1753019458968,-460.0,0.00018356,2]
[373475980,1753019458978,-460.0,0.00018356,2]
[373475982,1753019458987,-460.0,0.00018356,2]
[373475984,1753019458996,-151.0,0.00018356,2]
[373475986,1753019459005,-460.0,0.00018356,2]
[373475988,1753019459014,-460.0,0.00018356,2]
[373475990,1753019459023,-460.0,0.00018356,2]
[373475992,1753019459033,-460.0,0.00018356,2]
[373475994,1753019459042,-460.0,0.00018356,2]
[373475996,1753019459052,-460.0,0.00018356,2]
[373475998,1753019459061,-1244.56,0.00018356,2]
[373476000,1753019459071,-460.0,0.00018356,2]
[373476002,1753019459080,-460.0,0.00018356,2]
[373476004,1753019459089,-1544.89,0.00018356,2]
[373476006,1753019459098,-550.84301385,0.00018356,2]
[373476007,1753019459107,-842.6,0.00018356,2]
[373476009,1753019459116,-460.0,0.00018356,2]
[373476011,1753019459125,-220.405633,0.00018356,2]
[373476013,1753019459135,-460.0,0.00018356,2]
[373476015,1753019459145,-220.405633,0.00018356,2]
[373476017,1753019459154,-460.0,0.00018356,2]
[373476019,1753019459163,-460.0,0.00018356,2]
[373476021,1753019459173,-460.0,0.00018356,2]
[373476023,1753019459182,-460.0,0.00018356,2]
[373476025,1753019459193,-460.0,0.00018356,2]
[373476027,1753019459206,-460.0,0.00018356,2]
[373476029,1753019459215,-460.0,0.00018356,2]
[373476039,1753019459301,-558.03,0.00018356,2]
[373476040,1753019459312,-460.0,0.00018356,2]
[373476042,1753019459323,-396.23073792,0.00018356,2]
[373476044,1753019459333,-1408.91,0.00018356,2]
[373476046,1753019459342,-460.0,0.00018356,2]
[373476048,1753019459351,-460.0,0.00018356,2]
[373476050,1753019459361,-460.0,0.00018356,2]
[373476052,1753019459372,-460.0,0.00018356,2]
[373476054,1753019459381,-460.0,0.00018356,2]
[373476056,1753019459390,-460.0,0.00018356,2]
[373476058,1753019459401,-460.0,0.00018356,2]
[373476060,1753019459410,-460.0,0.00018356,2]
[373476062,1753019459419,-460.0,0.00018356,2]
[373476064,1753019459429,-831.05,0.00018356,2]
[373476066,1753019459440,-460.0,0.00018356,2]
[373476068,1753019459449,-460.0,0.00018356,2]
[373476070,1753019459458,-460.0,0.00018356,2]
[373476072,1753019459468,-579.25,0.00018356,2]
[373476074,1753019459478,-460.0,0.00018356,2]
[373476076,1753019459488,-460.0,0.00018356,2]
[373476078,1753019459497,-2689.75,0.00018356,2]
[373476080,1753019459507,-460.0,0.00018356,2]
[373476082,1753019459519,-460.0,0.00018356,2]
[373476084,1753019459528,-460.0,0.00018356,2]
[373476086,1753019459538,-460.0,0.00018356,2]
[373476088,1753019459547,-460.0,0.00018356,2]
[373476090,1753019459556,-460.0,0.00018356,2]
[373476092,1753019459566,-1119.34,0.00018356,2]
[373476093,1753019459575,-460.0,0.00018356,2]
[373476095,1753019459584,-460.0,0.00018356,2]
[373476097,1753019459593,-460.0,0.00018356,2]
[373476099,1753019459602,-218.18567102,0.00018356,2]
[373476101,1753019459611,-460.0,0.00018356,2]
[373476103,1753019459621,-460.0,0.00018356,2]
[373476105,1753019459630,-1334.21,0.00018356,2]
[373476107,1753019459639,-460.0,0.00018356,2]
[373476109,1753019459648,-2930.51,0.00018356,2]
[373476111,1753019459657,-460.0,0.00018356,2]
[373476113,1753019459667,-460.0,0.00018356,2]
[373476115,1753019459676,-460.0,0.00018356,2]
[373476117,1753019459686,-460.0,0.00018356,2]
[373476119,1753019459695,-460.0,0.00018356,2]
[373476121,1753019459705,-763.65,0.00018356,2]
[373476123,1753019459714,-460.0,0.00018356,2]
[373476125,1753019459723,-2327.68,0.00018356,2]
[373476127,1753019459733,-2733.92,0.00018356,2]
[373476129,1753019459742,-460.0,0.00018356,2]
[373476131,1753019459751,-500.0,0.00018416,2]
[373476133,1753019459761,-500.0,0.00018422,2]
[373476135,1753019459771,-500.0,0.00018422,2]
[373476137,1753019459780,-151.0,0.00018431,2]
[373476139,1753019459790,-151.0,0.00018431,2]
[373476140,1753019459803,-151.0,0.00018432,2]
[373476142,1753019459813,-1253.18,0.00018432,2]
[373476144,1753019459822,-1923.76,0.00018432,2]
[373476146,1753019459832,-460.0,0.00018432,2]
[373476148,1753019459842,-558.83,0.00018432,2]
[373476150,1753019459851,-1175.19,0.00018432,2]
[373476152,1753019459860,-1089.97,0.00018434,2]
[373476154,1753019459870,-151.0,0.00018499,2]
[373476156,1753019459879,-151.0,0.000185,2]
[373476158,1753019459889,-501.1262968,0.00018536,2]
[373476160,1753019459898,-500.94792548,0.00018536,2]
[373476162,1753019459907,-500.0,0.00018536,2]
[373476164,1753019459921,-500.0,0.00018536,2]
[373476166,1753019459931,-500.0,0.00018536,2]
[373476168,1753019459940,-500.0,0.00018536,2]
[373476170,1753019459950,-500.0,0.00018536,2]
[373476172,1753019459959,-503.28821453,0.00018536,2]
[373476174,1753019459968,-500.0,0.00018536,2]
[373476176,1753019459977,-500.0,0.00018536,2]
[373476178,1753019459986,-158.48796273,0.00018536,2]
[373476180,1753019459996,-158.19723148,0.00018536,2]
[373476182,1753019460005,-500.0,0.00018536,2]
[373476184,1753019460014,-165.42282706,0.00018536,2]
[373476186,1753019460023,-502.06587387,0.00018536,2]
[373476188,1753019460034,-500.0,0.00018552,2]
[373476190,1753019460044,-500.0,0.00018555,2]
[373476192,1753019460054,-4775.53488081,0.00018555,2]
[373476194,1753019460064,-500.0,0.00018564,2]
[373476196,1753019460073,-500.0,0.00018564,2]
[373476198,1753019460083,-500.0,0.00018564,2]
[373476200,1753019460092,-501.45215473,0.00018564,2]
[373476202,1753019460101,-500.0,0.00018564,2]
[373476204,1753019460111,-500.0,0.00018564,2]
[373476206,1753019460120,-502.33390025,0.00018564,2]
[373476208,1753019460130,-500.0,0.00018564,2]
[373476210,1753019460139,-491.32757784,0.00018581,2]
[373476212,1753019460149,-500.0,0.00018622,2]
[373476214,1753019460159,-501.90140821,0.00018622,2]
[373476216,1753019460169,-501.91390619,0.00018622,2]
[373476218,1753019460180,-500.0,0.00018622,2]
[373476220,1753019460189,-500.0,0.00018622,2]
[373476222,1753019460199,-501.80706793,0.00018622,2]
[373476224,1753019460210,-460.0,0.0001863,2]
[373476226,1753019460219,-460.0,0.0001863,2]
[373476228,1753019460229,-423.33903781,0.0001863,2]
[373476230,1753019460238,-460.0,0.0001863,2]
[373476232,1753019460248,-460.0,0.0001863,2]
[373476234,1753019460257,-460.0,0.0001863,2]
[373476235,1753019460266,-460.0,0.0001863,2]
[373476237,1753019460276,-460.0,0.0001863,2]
[373476239,1753019460285,-460.0,0.0001863,2]
[373476241,1753019460295,-460.0,0.0001863,2]
[373476243,1753019460304,-460.0,0.0001863,2]
[373476245,1753019460313,-460.0,0.0001863,2]
[373476247,1753019460323,-460.0,0.0001863,2]
[373476249,1753019460332,-460.0,0.0001863,2]
[373476251,1753019460342,-460.0,0.0001863,2]
[373476253,1753019460351,-151.0,0.0001863,2]
[373476255,1753019460360,-460.0,0.0001863,2]
[373476257,1753019460370,-460.0,0.0001863,2]
[373476259,1753019460379,-460.0,0.0001863,2]
[373476261,1753019460389,-460.0,0.0001863,2]
[373476263,1753019460399,-460.0,0.0001863,2]
[373476265,1753019460408,-460.0,0.0001863,2]
[373476267,1753019460418,-460.0,0.0001863,2]
[373476269,1753019460427,-1244.56,0.0001863,2]
[373476271,1753019460436,-460.0,0.0001863,2]
[373476273,1753019460449,-460.0,0.0001863,2]
[373476275,1753019460458,-1544.89,0.0001863,2]
[373476277,1753019460468,-842.6,0.0001863,2]
[373476279,1753019460479,-460.0,0.0001863,2]
[373476281,1753019460489,-460.0,0.0001863,2]
[373476283,1753019460499,-460.0,0.0001863,2]
[373476285,1753019460509,-460.0,0.0001863,2]
[373476287,1753019460520,-460.0,0.0001863,2]
[373476289,1753019460529,-460.0,0.0001863,2]
[373476291,1753019460539,-460.0,0.0001863,2]
[373476293,1753019460548,-460.0,0.0001863,2]
[373476295,1753019460558,-460.0,0.0001863,2]
[373476297,1753019460567,-558.03,0.0001863,2]
[373476299,1753019460578,-460.0,0.0001863,2]
[373476301,1753019460588,-1408.91,0.0001863,2]
[373476303,1753019460597,-460.0,0.0001863,2]
[373476305,1753019460607,-460.0,0.0001863,2]
[373476307,1753019460617,-460.0,0.0001863,2]
[373476309,1753019460626,-151.0,0.0001863,2]
[373476311,1753019460636,-460.0,0.0001863,2]
[373476313,1753019460646,-460.0,0.0001863,2]
[373476315,1753019460655,-460.0,0.0001863,2]
[373476317,1753019460664,-460.0,0.0001863,2]
[373476319,1753019460674,-460.0,0.0001863,2]
[373476321,1753019460683,-831.05,0.0001863,2]
[373476323,1753019460692,-151.0,0.0001863,2]
[373476325,1753019460701,-460.0,0.0001863,2]
[373476327,1753019460711,-460.0,0.0001863,2]
[373476329,1753019460721,-579.25,0.0001863,2]
[373476331,1753019460731,-460.0,0.0001863,2]
[373476333,1753019460741,-460.0,0.0001863,2]
[373476335,1753019460750,-2689.75,0.0001863,2]
[373476337,1753019460759,-460.0,0.0001863,2]
[373476339,1753019460768,-460.0,0.0001863,2]
[373476341,1753019460778,-460.0,0.0001863,2]
[373476343,1753019460787,-460.0,0.0001863,2]
[373476345,1753019460797,-460.0,0.0001863,2]
[373476347,1753019460807,-460.0,0.0001863,2]
[373476349,1753019460816,-1119.34,0.0001863,2]
[373476351,1753019460825,-460.0,0.0001863,2]
[373476353,1753019460835,-460.0,0.0001863,2]
[373476355,1753019460844,-460.0,0.0001863,2]
[373476357,1753019460853,-460.0,0.0001863,2]
[373476359,1753019460863,-460.0,0.0001863,2]
[373476361,1753019460873,-1334.21,0.0001863,2]
[373476363,1753019460882,-208.329113,0.0001863,2]
[373476365,1753019460892,-460.0,0.0001863,2]
[373476367,1753019460901,-208.329113,0.0001863,2]
[373476369,1753019460911,-2930.51,0.0001863,2]
[373476379,1753019460996,-440.21659322,0.0001863,2]
[373476381,1753019461005,-460.0,0.0001863,2]
[373476383,1753019461014,-460.0,0.0001863,2]
[373476385,1753019461024,-460.0,0.0001863,2]
[373476387,1753019461033,-460.0,0.0001863,2]
[373476389,1753019461042,-763.65,0.0001863,2]
[373476391,1753019461051,-498.32,0.0001863,2]
[373476393,1753019461061,-2733.92,0.0001863,2]
[373476394,1753019461070,-2327.68,0.0001863,2]
[373476396,1753019461079,-460.0,0.0001863,2]
[373476398,1753019461089,-358.719151,0.0001863,2]
[373476400,1753019461098,-500.0,0.00018696,2]
[373476402,1753019461107,-500.0,0.00018696,2]
[373476404,1753019461117,-1253.18,0.00018706,2]
[373476406,1753019461126,-1923.76,0.00018706,2]
[373476408,1753019461136,-460.0,0.00018706,2]
[373476410,1753019461146,-558.83,0.00018706,2]
[373476412,1753019461155,-1175.19,0.00018706,2]
[373476414,1753019461165,-151.0,0.00018708,2]
[373476416,1753019461176,-1089.97,0.00018708,2]
[373476418,1753019461186,-687.012168,0.00018708,2]
[373476420,1753019461196,-687.012168,0.00018708,2]
[373476422,1753019461206,-151.0,0.00018708,2]
[373476424,1753019461214,-151.0,0.00018708,2]
[373476426,1753019461224,-151.0,0.0001871,2]
[373476428,1753019461233,-151.0,0.0001871,2]
[373476430,1753019461242,-360.0,0.00018715,2]
[373476432,1753019461252,-160.645502,0.00018725,2]
[373476433,1753019461261,-152.811952,0.00018725,2]
[373476434,1753019461270,-152.811952,0.00018725,2]
[373476435,1753019461280,-151.0,0.00018725,2]
[373476436,1753019461289,-151.0,0.00018725,2]
[373476437,1753019461298,-151.0,0.00018725,2]
[373476438,1753019461307,-151.0,0.00018725,2]
[373476439,1753019461317,-151.0,0.00018725,2]
[373476440,1753019461326,-337.966889,0.00018725,2]
[373476441,1753019461335,-337.966889,0.00018725,2]
[373476442,1753019461344,-151.0,0.00018725,2]
[373476443,1753019461354,-195.285232,0.00018725,2]
[373476444,1753019461363,-195.285232,0.00018725,2]
[373476445,1753019461372,-252.007973,0.00018725,2]
[373476447,1753019461381,-252.007973,0.00018725,2]
[373476449,1753019461392,-1000.0,0.00018756,2]
[373476451,1753019461401,-505.21196279,0.00018785,2]
[373476453,1753019461411,-500.0,0.00018785,2]
[373476455,1753019461420,-500.0,0.00018825,2]
[373476457,1753019461430,-4775.53488081,0.00018831,2]